fUSD/lending_fUSD_20241221
["ID","MTS","AMOUNT","RATE_DAILY","PERIOD"]
[346195905,1734772248998,-503.83069393,0.00019178,2]
[346195906,1734772249008,-583.99,0.00019178,2]
[346195907,1734772249018,-500.0,0.00019178,2]
[346195908,1734772249028,-500.0,0.00019178,2]
[346195909,1734772249037,-500.0,0.00019178,2]
[346195910,1734772249049,-1140.58,0.00019178,2]
[346195911,1734772249059,-641.49,0.00019178,2]
[346195912,1734772249069,-500.0,0.00019178,2]
[346195913,1734772249079,-500.0,0.00019178,2]
[346195914,1734772249088,-500.0,0.00019178,2]
[346195915,1734772249098,-500.0,0.00019178,2]
[346195916,1734772249107,-704.15,0.00019178,2]
[346195917,1734772249117,-500.0,0.00019178,2]
[346195918,1734772249126,-500.0,0.00019178,2]
[346195919,1734772249136,-587.78,0.00019178,2]
[346195920,1734772249146,-500.0,0.00019178,2]
[346195921,1734772249155,-712.45,0.00019178,2]
[346195922,1734772249164,-500.0,0.00019178,2]
[346195923,1734772249174,-500.0,0.00019178,2]
[346195924,1734772249183,-500.0,0.00019178,2]
[346195925,1734772249193,-500.0,0.00019178,2]
[346195926,1734772249203,-500.0,0.00019178,2]
[346195927,1734772249213,-500.0,0.00019178,2]
[346195928,1734772249222,-500.0,0.00019178,2]
[346195929,1734772249232,-500.0,0.00019178,2]
[346195930,1734772249242,-500.0,0.00019178,2]
[346195931,1734772249251,-500.0,0.00019178,2]
[346195932,1734772249260,-547.17,0.00019178,2]
[346195933,1734772249270,-200.0,0.00019178,2]
[346195934,1734772249280,-500.0,0.00019178,2]
[346195935,1734772249289,-500.0,0.00019178,2]
[346195936,1734772249300,-506.10517191,0.00019178,2]
[346195937,1734772249310,-500.0,0.00019178,2]
[346195938,1734772249319,-500.0,0.00019178,2]
[346195939,1734772249329,-505.63507947,0.00019178,2]
[346195940,1734772249339,-500.0,0.00019178,2]
[346195941,1734772249349,-500.0,0.00019178,2]
[346195942,1734772249358,-500.0,0.00019178,2]
[346195943,1734772249368,-500.0,0.00019178,2]
[346195944,1734772249377,-500.0,0.00019178,2]
[346195945,1734772249386,-500.0,0.00019178,2]
[346195946,1734772249396,-500.0,0.00019178,2]
[346195947,1734772249406,-500.0,0.00019178,2]
[346195948,1734772249415,-500.0,0.00019178,2]
[346195949,1734772249425,-674.12,0.00019178,2]
[346195950,1734772249434,-500.0,0.00019178,2]
[346195951,1734772249443,-521.64778827,0.00019178,2]
[346195952,1734772249453,-500.0,0.00019178,2]
[346195953,1734772249462,-500.0,0.00019178,2]
[346195954,1734772249472,-500.0,0.00019178,2]
[346195955,1734772249481,-500.0,0.00019178,2]
[346195956,1734772249491,-861.66,0.00019178,2]
[346195957,1734772249501,-500.0,0.00019178,2]
[346195958,1734772249510,-519.6306687,0.00019178,2]
[346195959,1734772249521,-557.52,0.00019178,2]
[346195960,1734772249530,-500.0,0.00019178,2]
[346195961,1734772249540,-590.20169151,0.00019178,2]
[346195962,1734772249551,-972.89,0.00019178,2]
[346195963,1734772249560,-500.0,0.00019178,2]
[346195964,1734772249570,-500.0,0.00019178,2]
[346195965,1734772249579,-500.0,0.00019178,2]
[346195966,1734772249589,-1128.38,0.00019178,2]
[346195967,1734772249598,-500.0,0.00019178,2]
[346195968,1734772249607,-500.0,0.00019178,2]
[346195969,1734772249617,-500.0,0.00019178,2]
[346195970,1734772249626,-500.0,0.00019178,2]
[346195971,1734772249636,-500.0,0.00019178,2]
[346195972,1734772249645,-502.14493748,0.00019178,2]
[346195973,1734772249654,-700.66,0.00019178,2]
[346195974,1734772249664,-500.0,0.00019178,2]
[346195975,1734772249673,-500.0,0.00019178,2]
[346195976,1734772249683,-718.99,0.00019178,2]
[346195977,1734772249692,-500.0,0.00019178,2]
[346195978,1734772249701,-500.0,0.00019178,2]
[346195979,1734772249711,-500.0,0.00019178,2]
[346195980,1734772249720,-500.0,0.00019178,2]
[346195981,1734772249730,-500.0,0.00019178,2]
[346195982,1734772249739,-500.0,0.00019178,2]
[346195983,1734772249748,-500.0,0.00019178,2]
[346195984,1734772249757,-500.0,0.00019178,2]
[346195985,1734772249768,-880.55,0.00019178,2]
[346195986,1734772249777,-500.0,0.00019178,2]
[346195987,1734772249787,-500.0,0.00019178,2]
[346195988,1734772249796,-500.0,0.00019178,2]
[346195989,1734772249805,-500.0,0.00019178,2]
[346195990,1734772249815,-911.53,0.00019178,2]
[346195991,1734772249827,-583.6,0.00019178,2]
[346195992,1734772249836,-500.0,0.00019178,2]
[346195993,1734772249845,-500.0,0.00019178,2]
[346195994,1734772249854,-500.0,0.00019178,2]
[346195995,1734772249865,-500.0,0.00019178,2]
[346195996,1734772249875,-500.0,0.00019178,2]
[346195997,1734772249884,-500.0,0.00019178,2]
[346195998,1734772249895,-890.48,0.00019178,2]
[346195999,1734772249905,-500.0,0.00019178,2]
[346196000,1734772249914,-633.39,0.00019178,2]
[346196001,1734772249924,-500.0,0.00019178,2]
[346196002,1734772249934,-592.41,0.00019178,2]
[346196003,1734772249942,-894.78,0.00019178,2]
[346196004,1734772249951,-500.0,0.00019178,2]
[346196005,1734772249961,-500.0,0.00019178,2]
[346196006,1734772249970,-519.54699318,0.00019178,2]
[346196007,1734772249980,-500.0,0.00019178,2]
[346196008,1734772249989,-503.19818602,0.00019178,2]
[346196009,1734772249998,-500.0,0.00019178,2]
[346196010,1734772250008,-500.0,0.00019178,2]
[346196011,1734772250017,-500.0,0.00019178,2]
[346196012,1734772250027,-500.0,0.00019178,2]
[346196013,1734772250037,-476.40221319,0.00019178,2]
[346196014,1734772250046,-500.0,0.00019178,2]
[346196015,1734772250056,-500.0,0.00019178,2]
[346196016,1734772250065,-1003.46,0.00019178,2]
[346196017,1734772250074,-3128.92,0.00019178,2]
[346196018,1734772250084,-500.0,0.00019178,2]
[346196019,1734772250094,-500.0,0.00019178,2]
[346196020,1734772250103,-1215.52,0.00019178,2]
[346196021,1734772250112,-500.0,0.00019178,2]
[346196022,1734772250121,-500.0,0.00019178,2]
[346196023,1734772250130,-500.0,0.00019178,2]
[346196024,1734772250139,-500.0,0.00019178,2]
[346196025,1734772250148,-1570.13,0.00019178,2]
[346196026,1734772250158,-500.0,0.00019178,2]
[346196027,1734772250167,-500.0,0.00019178,2]
[346196028,1734772250177,-500.0,0.00019178,2]
[346196029,1734772250186,-500.0,0.00019178,2]
[346196030,1734772250195,-500.0,0.00019178,2]
[346196031,1734772250205,-758.65,0.00019178,2]
[346196032,1734772250214,-500.0,0.00019178,2]
[346196033,1734772250224,-1624.27,0.00019178,2]
[346196034,1734772250233,-500.0,0.00019178,2]
[346196035,1734772250244,-500.0,0.00019178,2]
[346196036,1734772250254,-500.0,0.00019178,2]
[346196037,1734772250264,-500.0,0.00019178,2]
[346196038,1734772250274,-500.0,0.00019178,2]
[346196039,1734772250283,-500.0,0.00019178,2]
[346196040,1734772250293,-500.0,0.00019178,2]
[346196041,1734772250303,-828.56,0.00019178,2]
[346196042,1734772250313,-500.0,0.00019178,2]
[346196043,1734772250322,-1072.48,0.00019178,2]
[346196044,1734772250332,-1798.61,0.00019178,2]
[346196045,1734772250341,-500.0,0.00019178,2]
[346196046,1734772250351,-500.0,0.00019178,2]
[346196047,1734772250360,-500.0,0.00019178,2]
[346196048,1734772250369,-500.0,0.00019178,2]
[346196049,1734772250379,-500.0,0.00019178,2]
[346196050,1734772250388,-714.92,0.00019178,2]
[346196051,1734772250397,-783.51,0.00019178,2]
[346196052,1734772250407,-500.0,0.00019178,2]
[346196053,1734772250418,-500.0,0.00019178,2]
[346196054,1734772250427,-500.0,0.00019178,2]
[346196055,1734772250437,-500.0,0.00019178,2]
[346196056,1734772250446,-500.0,0.00019178,2]
[346196057,1734772250455,-1315.09,0.00019178,2]
[346196058,1734772250465,-500.0,0.00019178,2]
[346196059,1734772250475,-1106.14,0.00019178,2]
[346196060,1734772250485,-500.0,0.00019178,2]
[346196061,1734772250494,-3177.04,0.00019178,2]
[346196062,1734772250503,-500.0,0.00019178,2]
[346196063,1734772250513,-500.0,0.00019178,2]
[346196064,1734772250523,-500.0,0.00019178,2]
[346196065,1734772250532,-500.0,0.00019178,2]
[346196066,1734772250542,-1124.0,0.00019178,2]
[346196067,1734772250554,-500.0,0.00019178,2]
[346196068,1734772250564,-500.0,0.00019178,2]
[346196069,1734772250574,-507.64741232,0.00019178,2]
[346196070,1734772250584,-706.32,0.00019178,2]
[346196071,1734772250593,-500.0,0.00019178,2]
[346196072,1734772250603,-500.0,0.00019178,2]
[346196073,1734772250612,-500.0,0.00019178,2]
[346196074,1734772250622,-1352.48,0.00019178,2]
[346196075,1734772250632,-500.0,0.00019178,2]
[346196076,1734772250641,-500.0,0.00019178,2]
[346196077,1734772250650,-898.23,0.00019178,2]
[346196078,1734772250660,-797.94,0.00019178,2]
[346196079,1734772250671,-500.0,0.00019178,2]
[346196080,1734772250680,-508.08727053,0.00019178,2]
[346196081,1734772250690,-500.0,0.00019178,2]
[346196082,1734772250699,-500.0,0.00019178,2]
[346196083,1734772250709,-500.0,0.00019178,2]
[346196084,1734772250718,-500.0,0.00019178,2]
[346196085,1734772250727,-500.0,0.00019178,2]
[346196086,1734772250737,-500.0,0.00019178,2]
[346196087,1734772250746,-500.0,0.00019178,2]
[346196088,1734772250756,-1574.97,0.00019178,2]
[346196089,1734772250765,-500.0,0.00019178,2]
[346196090,1734772250774,-153.787617,0.00019178,2]
[346196091,1734772250783,-154.14021,0.00019178,2]
[346196092,1734772250793,-500.0,0.00019178,2]
[346196093,1734772250872,-500.0,0.00019178,2]
[346196094,1734772250883,-500.0,0.00019178,2]
[346196095,1734772250894,-597.15,0.00019178,2]
[346196096,1734772250903,-500.0,0.00019178,2]
[346196097,1734772250912,-1139.38,0.00019178,2]
[346196098,1734772250922,-500.0,0.00019178,2]
[346196099,1734772250931,-628.68,0.00019178,2]
[346196100,1734772250939,-500.0,0.00019178,2]
[346196101,1734772250948,-500.0,0.00019178,2]
[346196102,1734772250957,-500.0,0.00019178,2]
[346196103,1734772250967,-500.0,0.00019178,2]
[346196104,1734772250977,-886.78,0.00019178,2]
[346196105,1734772250987,-500.0,0.00019178,2]
[346196106,1734772250997,-506.65,0.00019178,2]
[346196107,1734772251006,-500.0,0.00019178,2]
[346196108,1734772251015,-2160.81,0.00019178,2]
[346196109,1734772251026,-577.3,0.00019178,2]
[346196110,1734772251035,-1659.19,0.00019178,2]
[346196111,1734772251044,-500.0,0.00019178,2]
[346196112,1734772251055,-500.0,0.00019178,2]
[346196113,1734772251065,-500.0,0.00019178,2]
[346196114,1734772251074,-500.0,0.00019178,2]
[346196115,1734772251084,-1200.35,0.00019178,2]
[346196116,1734772251093,-500.0,0.00019178,2]
[346196117,1734772251102,-500.0,0.00019178,2]
[346196118,1734772251112,-500.0,0.00019178,2]
[346196119,1734772251121,-612.48,0.00019178,2]
[346196120,1734772251131,-348.2026093,0.00019178,2]
[346196121,1734772251141,-500.0,0.00019178,2]
[346196122,1734772251151,-2798.72,0.00019178,2]
[346196123,1734772251160,-500.0,0.00019178,2]
[346196124,1734772251169,-500.0,0.00019178,2]
[346196125,1734772251178,-2360.81,0.00019178,2]
[346196126,1734772251187,-500.0,0.00019178,2]
[346196127,1734772251196,-502.36985725,0.00019178,2]
[346196128,1734772251206,-500.0,0.00019178,2]
[346196129,1734772251215,-1127.7,0.00019178,2]
[346196130,1734772251225,-591.61,0.00019178,2]
[346196131,1734772251234,-962.95,0.00019178,2]
[346196132,1734772251243,-1382.46,0.00019178,2]
[346196133,1734772251252,-1525.57,0.00019178,2]
[346196134,1734772251261,-500.0,0.00019178,2]
[346196135,1734772251271,-500.0,0.00019178,2]
[346196136,1734772251280,-500.0,0.00019178,2]
[346196137,1734772251289,-500.0,0.00019178,2]
[346196138,1734772251300,-822.33,0.00019178,2]
[346196139,1734772251309,-500.0,0.00019178,2]
[346196140,1734772251318,-500.0,0.00019178,2]
[346196141,1734772251327,-500.96200082,0.00019178,2]
[346196142,1734772251336,-1610.78,0.00019178,2]
[346196143,1734772251346,-153.375156,0.00019178,2]
[346196144,1734772251355,-624.58,0.00019178,2]
[346196145,1734772251364,-500.0,0.00019178,2]
[346196146,1734772251373,-500.0,0.00019178,2]
[346196147,1734772251382,-500.0,0.00019178,2]
[346196148,1734772251392,-500.0,0.00019178,2]
[346196149,1734772251401,-502.83792077,0.00019178,2]
[346196150,1734772251410,-500.0,0.00019178,2]
[346196151,1734772251420,-500.0,0.00019178,2]
[346196152,1734772251429,-1652.17,0.00019178,2]
[346196153,1734772251439,-508.2,0.00019178,2]
[346196154,1734772251448,-500.0,0.00019178,2]
[346196155,1734772251457,-500.0,0.00019178,2]
[346196156,1734772251466,-500.0,0.00019178,2]
[346196157,1734772251476,-2945.38,0.00019178,2]
[346196158,1734772251485,-501.44021088,0.00019178,2]
[346196159,1734772251494,-612.4,0.00019178,2]
[346196160,1734772251503,-500.0,0.00019178,2]
[346196161,1734772251512,-500.0,0.00019178,2]
[346196162,1734772251522,-500.0,0.00019178,2]
[346196163,1734772251531,-500.0,0.00019178,2]
[346196164,1734772251541,-500.0,0.00019178,2]
[346196165,1734772251550,-2554.24,0.00019178,2]
[346196166,1734772251559,-1658.95,0.00019178,2]
[346196167,1734772251568,-500.0,0.00019178,2]
[346196168,1734772251578,-500.0,0.00019178,2]
[346196169,1734772251587,-500.0,0.00019178,2]
[346196170,1734772251596,-500.0,0.00019178,2]
[346196171,1734772251605,-500.0,0.00019178,2]
[346196172,1734772251615,-500.0,0.00019178,2]
[346196173,1734772251625,-500.0,0.00019178,2]
[346196174,1734772251634,-500.0,0.00019178,2]
[346196175,1734772251644,-456.88712044,0.00019178,2]
[346196176,1734772251654,-500.0,0.00019178,2]
[346196177,1734772251663,-500.0,0.00019178,2]
[346196178,1734772251672,-500.0,0.00019178,2]
[346196179,1734772251681,-500.0,0.00019178,2]
[346196180,1734772251690,-500.0,0.00019178,2]
[346196181,1734772251700,-500.0,0.00019178,2]
[346196182,1734772251709,-700.82,0.00019178,2]
[346196183,1734772251720,-1125.18,0.00019178,2]
[346196184,1734772251729,-867.73,0.00019178,2]
[346196185,1734772251739,-500.0,0.00019178,2]
[346196186,1734772251748,-500.0,0.00019178,2]
[346196187,1734772251757,-500.0,0.00019178,2]
[346196188,1734772251767,-500.0,0.00019178,2]
[346196189,1734772251776,-623.46,0.00019178,2]
[346196190,1734772251785,-500.0,0.00019178,2]
[346196191,1734772251796,-500.0,0.00019178,2]
[346196192,1734772251805,-501.22865428,0.00019178,2]
[346196193,1734772251814,-820.96,0.00019178,2]
[346196194,1734772251828,-1170.18,0.00019178,2]
[346196195,1734772251837,-555.4,0.00019178,2]
[346196196,1734772251848,-500.0,0.00019178,2]
[346196197,1734772251859,-220.53129583,0.00019178,2]
[346196198,1734772251869,-502.7326307,0.00019178,2]
[346196199,1734772251878,-1624.77,0.00019178,2]
[346196200,1734772251889,-1030.61,0.00019178,2]
[346196201,1734772251899,-554.26,0.00019178,2]
[346196202,1734772251909,-500.0,0.00019178,2]
[346196203,1734772251918,-154.203884,0.00019178,2]
[346196204,1734772251928,-500.0,0.00019178,2]
[346196205,1734772251937,-500.0,0.00019178,2]
[346196206,1734772251947,-500.0,0.00019178,2]
[346196207,1734772251956,-150.0,0.00019178,2]
[346196208,1734772251966,-500.0,0.00019178,2]
[346196209,1734772251974,-500.0,0.00019178,2]
[346196210,1734772251984,-500.0,0.00019178,2]
[346196211,1734772251993,-500.0,0.00019178,2]
[346196212,1734772252002,-765.53,0.00019178,2]
[346196213,1734772252012,-504.32050404,0.00019178,2]
[346196214,1734772252021,-500.0,0.00019178,2]
[346196215,1734772252031,-577.26831856,0.00019178,2]
[346196216,1734772252041,-500.0,0.00019178,2]
[346196217,1734772252051,-500.0,0.00019178,2]
[346196218,1734772252061,-1408.16,0.00019178,2]
[346196219,1734772252070,-500.0,0.00019178,2]
[346196220,1734772252083,-5000.0,0.00019178,2]
[346196221,1734772252093,-500.0,0.00019178,2]
[346196222,1734772252102,-500.0,0.00019178,2]
[346196223,1734772252112,-788.52,0.00019178,2]
[346196224,1734772252121,-590.9,0.00019178,2]
[346196225,1734772252130,-500.0,0.00019178,2]
[346196226,1734772252140,-500.0,0.00019178,2]
[346196227,1734772252150,-813.69,0.00019178,2]
[346196228,1734772252159,-822.79,0.00019178,2]
[346196229,1734772252169,-500.0,0.00019178,2]
[346196230,1734772252178,-500.0,0.00019178,2]
[346196231,1734772252188,-500.0,0.00019178,2]
[346196232,1734772252197,-500.0,0.00019178,2]
[346196233,1734772252207,-500.0,0.00019178,2]
[346196234,1734772252217,-500.0,0.00019178,2]
[346196235,1734772252226,-500.0,0.00019178,2]
[346196236,1734772252236,-500.0,0.00019178,2]
[346196237,1734772252245,-500.0,0.00019178,2]
[346196238,1734772252254,-1101.49,0.00019178,2]
[346196239,1734772252263,-1511.4,0.00019178,2]
[346196240,1734772252273,-500.0,0.00019178,2]
[346196241,1734772252283,-522.37486953,0.00019178,2]
[346196242,1734772252293,-536.16,0.00019178,2]
[346196243,1734772252304,-500.0,0.00019178,2]
[346196244,1734772252316,-500.0,0.00019178,2]
[346196245,1734772252327,-1286.88,0.00019178,2]
[346196246,1734772252337,-248.80575169,0.00019178,2]
[346196247,1734772252346,-500.0,0.00019178,2]
[346196248,1734772252355,-500.0,0.00019178,2]
[346196249,1734772252365,-517.70318571,0.00019178,2]
[346196250,1734772252374,-500.0,0.00019178,2]
[346196251,1734772252384,-500.0,0.00019178,2]
[346196252,1734772252393,-3479.03,0.00019178,2]
[346196253,1734772252402,-500.0,0.00019178,2]
[346196254,1734772252411,-500.0,0.00019178,2]
[346196255,1734772252421,-535.75,0.00019178,2]
[346196256,1734772252430,-500.0,0.00019178,2]
[346196257,1734772252439,-3252.83,0.00019178,2]
[346196258,1734772252449,-153.027636,0.00019178,2]
[346196259,1734772252458,-500.0,0.00019178,2]
[346196260,1734772252468,-500.0,0.00019178,2]
[346196261,1734772252477,-500.0,0.00019178,2]
[346196262,1734772252487,-1041.95,0.00019178,2]
[346196263,1734772252498,-2255.66,0.00019178,2]
[346196264,1734772252511,-500.0,0.00019178,2]
[346196265,1734772252521,-500.0,0.00019178,2]
[346196266,1734772252531,-1634.64,0.00019178,2]
[346196267,1734772252544,-500.0,0.00019178,2]
[346196268,1734772252558,-692.42,0.00019178,2]
[346196269,1734772252568,-500.0,0.00019178,2]
[346196270,1734772252578,-500.0,0.00019178,2]
[346196271,1734772252589,-500.0,0.00019178,2]
[346196272,1734772252600,-500.0,0.00019178,2]
[346196273,1734772252611,-500.0,0.00019178,2]
[346196274,1734772252622,-500.0,0.00019178,2]
[346196275,1734772252632,-542.6,0.00019178,2]
[346196276,1734772252642,-500.0,0.00019178,2]
[346196277,1734772252653,-758.96,0.00019178,2]
[346196278,1734772252663,-877.54,0.00019178,2]
[346196279,1734772252673,-555.52,0.00019178,2]
[346196280,1734772252683,-2327.41,0.00019178,2]
[346196281,1734772252693,-500.0,0.00019178,2]
[346196282,1734772252703,-500.0,0.00019178,2]
[346196283,1734772252713,-500.0,0.00019178,2]
[346196284,1734772252722,-500.0,0.00019178,2]
[346196285,1734772252732,-500.0,0.00019178,2]
[346196286,1734772252742,-500.0,0.00019178,2]
[346196287,1734772252752,-500.0,0.00019178,2]
[346196288,1734772252761,-543.3142155,0.00019178,2]
[346196289,1734772252771,-1155.61,0.00019178,2]
[346196290,1734772252781,-500.0,0.00019178,2]
[346196291,1734772252792,-500.0,0.00019178,2]
[346196292,1734772252805,-500.0,0.00019178,2]
[346196293,1734772252816,-500.0,0.00019178,2]
[346196294,1734772252831,-500.0,0.00019178,2]
[346196295,1734772252841,-500.0,0.00019178,2]
[346196296,1734772252851,-1502.56,0.00019178,2]
[346196297,1734772252862,-6140.58,0.00019178,2]
[346196298,1734772252872,-532.11,0.00019178,2]
[346196299,1734772252881,-500.0,0.00019178,2]
[346196300,1734772252892,-500.0,0.00019178,2]
[346196301,1734772252902,-500.0,0.00019178,2]
[346196302,1734772252911,-1089.3,0.00019178,2]
[346196303,1734772252921,-1248.37,0.00019178,2]
[346196304,1734772252932,-500.0,0.00019178,2]
[346196305,1734772252942,-507.57595541,0.00019178,2]
[346196306,1734772252952,-731.7,0.00019178,2]
[346196307,1734772252962,-500.0,0.00019178,2]
[346196308,1734772252972,-583.39345921,0.00019178,2]
[346196309,1734772252983,-500.0,0.00019178,2]
[346196310,1734772252993,-500.0,0.00019178,2]
[346196311,1734772253003,-500.0,0.00019178,2]
[346196312,1734772253013,-500.0,0.00019178,2]
[346196313,1734772253023,-500.0,0.00019178,2]
[346196314,1734772253033,-1120.28,0.00019178,2]
[346196315,1734772253043,-500.0,0.00019178,2]
[346196316,1734772253056,-500.0,0.00019178,2]
[346196317,1734772253066,-1565.11,0.00019178,2]
[346196318,1734772253077,-533.19,0.00019178,2]
[346196319,1734772253086,-254.26423255,0.00019178,2]
[346196320,1734772253097,-500.0,0.00019178,2]
[346196321,1734772253108,-500.0,0.00019178,2]
[346196322,1734772253118,-500.0,0.00019178,2]
[346196323,1734772253128,-892.22,0.00019178,2]
[346196324,1734772253138,-500.0,0.00019178,2]
[346196325,1734772253148,-500.0,0.00019178,2]
[346196326,1734772253159,-500.0,0.00019178,2]
[346196327,1734772253169,-500.0,0.00019178,2]
[346196328,1734772253180,-500.0,0.00019178,2]
[346196329,1734772253190,-1085.64,0.00019178,2]
[346196330,1734772253200,-3650.58,0.00019178,2]
[346196331,1734772253210,-1231.46,0.00019178,2]
[346196332,1734772253220,-667.32,0.00019178,2]
[346196333,1734772253231,-500.0,0.00019178,2]
[346196334,1734772253240,-153.376128,0.00019178,2]
[346196335,1734772253251,-1922.9,0.00019178,2]
[346196336,1734772253261,-3024.03,0.00019178,2]
[346196337,1734772253270,-500.0,0.00019178,2]
[346196338,1734772253281,-500.0,0.00019178,2]
[346196339,1734772253290,-500.0,0.00019178,2]
[346196340,1734772253306,-500.0,0.00019178,2]
[346196341,1734772253316,-1010.49,0.00019178,2]
[346196342,1734772253326,-1171.69,0.00019178,2]
[346196343,1734772253336,-500.0,0.00019178,2]
[346196344,1734772253346,-500.0,0.00019178,2]
[346196345,1734772253356,-500.0,0.00019178,2]
[346196346,1734772253366,-502.73373815,0.00019178,2]
[346196347,1734772253377,-500.0,0.00019178,2]
[346196348,1734772253387,-500.0,0.00019178,2]
[346196349,1734772253397,-1392.03,0.00019178,2]
[346196350,1734772253407,-500.0,0.00019178,2]
[346196351,1734772253417,-2916.53,0.00019178,2]
[346196352,1734772253427,-500.0,0.00019178,2]
[346196353,1734772253438,-500.0,0.00019178,2]
[346196354,1734772253448,-500.0,0.00019178,2]
[346196355,1734772253459,-502.73600671,0.00019178,2]
[346196356,1734772253469,-500.0,0.00019178,2]
[346196357,1734772253479,-1003.18,0.00019178,2]
[346196358,1734772253489,-500.0,0.00019178,2]
[346196359,1734772253499,-2572.95,0.00019178,2]
[346196360,1734772253508,-500.0,0.00019178,2]
[346196361,1734772253518,-500.0,0.00019178,2]
[346196362,1734772253529,-500.0,0.00019178,2]
[346196363,1734772253539,-654.05,0.00019178,2]
[346196364,1734772253551,-500.0,0.00019178,2]
[346196365,1734772253562,-500.0,0.00019178,2]
[346196366,1734772253571,-500.0,0.00019178,2]
[346196367,1734772253582,-1362.16,0.00019178,2]
[346196368,1734772253592,-540.82,0.00019178,2]
[346196369,1734772253602,-500.0,0.00019178,2]
[346196370,1734772253613,-500.0,0.00019178,2]
[346196371,1734772253623,-500.0,0.00019178,2]
[346196372,1734772253634,-500.0,0.00019178,2]
[346196373,1734772253645,-500.0,0.00019178,2]
[346196374,1734772253658,-500.0,0.00019178,2]
[346196375,1734772253669,-500.0,0.00019178,2]
[346196376,1734772253681,-500.0,0.00019178,2]
[346196377,1734772253692,-1823.1,0.00019178,2]
[346196378,1734772253703,-500.0,0.00019178,2]
[346196379,1734772253715,-3354.7,0.00019178,2]
[346196380,1734772253726,-500.0,0.00019178,2]
[346196381,1734772253738,-819.72,0.00019178,2]
[346196382,1734772253750,-500.0,0.00019178,2]
[346196383,1734772253761,-500.0,0.00019178,2]
[346196384,1734772253772,-500.0,0.00019178,2]
[346196385,1734772253783,-500.0,0.00019178,2]
[346196386,1734772253795,-577.61,0.00019178,2]
[346196387,1734772253816,-659.89,0.00019178,2]
[346196388,1734772253829,-1136.07,0.00019178,2]
[346196389,1734772253840,-500.0,0.00019178,2]
[346196390,1734772253852,-500.0,0.00019178,2]
[346196391,1734772253865,-500.0,0.00019178,2]
[346196392,1734772253877,-500.0,0.00019178,2]
[346196393,1734772253889,-423.57245123,0.00019178,2]
[346196394,1734772253902,-500.0,0.00019178,2]
[346196395,1734772253914,-500.0,0.00019178,2]
[346196396,1734772253925,-500.0,0.00019178,2]
[346196397,1734772253937,-500.0,0.00019178,2]
[346196398,1734772253947,-500.0,0.00019178,2]
[346196399,1734772253957,-927.7,0.00019178,2]
[346196400,1734772253968,-500.0,0.00019178,2]
[346196401,1734772253978,-500.0,0.00019178,2]
[346196402,1734772253989,-1688.45,0.00019178,2]
[346196403,1734772253999,-500.0,0.00019178,2]
[346196404,1734772254009,-1078.8,0.00019178,2]